bitfinex/quotes_SOLUSD_20241223
["timestamp","ask_amount","ask_price","bid_price","bid_amount"]
[1734975466920,2.0346123,185.02,184.91,32.93459149]
[1734975467104,0.6834123,185.02,184.91,32.93459149]
[1734975467308,20.6834123,185.02,184.91,32.93459149]
[1734975467613,20.6834123,185.02,184.9,32.93459149]
[1734975467819,20.6834123,185.02,184.91,32.93459149]
[1734975468132,0.12549,185.01,184.9,32.93459149]
[1734975468308,1.47669,185.01,184.88,52.93459149]
[1734975468823,21.47669,185.01,184.88,52.93459149]
[1734975469126,0.12549,184.99,184.86,32.93459149]
[1734975469328,0.12549,184.97,184.84,32.93459149]
[1734975469628,0.12549,184.95,184.81,32.93459149]
[1734975469805,3.6077,184.96,184.84,32.93459149]
[1734975470002,20.0,184.95,184.86,32.93459149]
[1734975470434,20.0,184.95,184.85,32.93459149]
[1734975470812,20.0,184.95,184.86,32.93459149]
[1734975471002,20.0,184.95,184.85,32.93459149]
[1734975471206,20.0,184.95,184.86,32.93459149]
[1734975472407,20.0,184.95,184.84,32.93459149]
[1734975472807,4.9594,184.96,184.84,32.93459149]
[1734975473014,20.0,184.95,184.84,32.93459149]
[1734975473334,3.6077,184.96,184.87,32.93459149]
[1734975474042,3.6077,184.96,184.86,32.93459149]
[1734975474207,3.6077,184.96,184.86,20.26111218]
[1734975474809,21.47719,184.95,184.78,0.81111703]
[1734975475027,0.12549,184.92,184.76,6.2401]
[1734975475341,0.12549,184.92,184.79,20.26111218]
[1734975475508,20.0,184.93,184.8,20.26111218]
[1734975476036,21.3519,184.93,184.81,20.26111218]
[1734975478240,21.3519,184.93,184.8,20.26111218]
[1734975478606,0.12549,184.92,184.79,20.26111218]
[1734975478810,0.12549,184.92,184.78,20.26111218]
[1734975479932,0.12549,184.92,184.79,20.26111218]
[1734975480117,0.12549,184.92,184.78,20.26111218]
[1734975480318,20.0,184.89,184.77,20.26111218]
[1734975481036,3.0181,184.91,184.8,20.26111218]
[1734975481217,3.0181,184.91,184.82,20.26111218]
[1734975481418,3.0181,184.91,184.8,20.26111218]
[1734975481745,1.6661,184.91,184.82,20.26111218]
[1734975481918,1.6661,184.91,184.81,20.26111218]
[1734975482109,1.6661,184.91,184.82,20.26111218]
[1734975482313,1.6661,184.91,184.81,20.26111218]
[1734975482530,1.6661,184.91,184.82,20.26111218]
[1734975483216,1.6661,184.91,184.83,20.26111218]
[1734975483412,1.6661,184.91,184.8,44.03799618]
[1734975483934,1.6661,184.91,184.8,23.776884]
[1734975484436,1.6661,184.91,184.8,44.03799618]
[1734975484639,1.6661,184.91,184.8,20.26111218]
[1734975485142,3.0181,184.91,184.77,33.79071218]
[1734975485439,20.0,184.87,184.75,20.26111218]
[1734975485740,3.6077,184.86,184.75,20.26111218]
[1734975486426,3.6077,184.86,184.76,20.26111218]
[1734975486825,3.6077,184.86,184.75,20.26111218]
[1734975487236,3.6077,184.86,184.77,20.26111218]
[1734975487748,3.6077,184.86,184.75,20.26111218]
[1734975488249,3.6077,184.86,184.76,20.26111218]
[1734975488467,3.6077,184.86,184.74,20.26111218]
[1734975488644,3.6077,184.86,184.75,20.26111218]
[1734975489157,20.0,184.83,184.7,20.26111218]
[1734975489316,20.0,184.83,184.71,20.26111218]
[1734975489512,20.0,184.83,184.72,20.26111218]
[1734975489742,20.0,184.83,184.73,20.26111218]
[1734975489939,20.0,184.83,184.72,20.26111218]
[1734975490136,1.5241,184.84,184.71,20.26111218]
[1734975490325,20.0,184.83,184.71,20.26111218]
[1734975490545,20.0,184.83,184.72,20.26111218]
[1734975491763,20.0,184.83,184.71,20.26111218]
[1734975492242,0.12549,184.82,184.69,20.26111218]
[1734975492432,3.6077,184.78,184.66,20.26111218]
[1734975492837,3.6077,184.78,184.67,20.26111218]
[1734975493633,3.6077,184.78,184.68,20.26111218]
[1734975493948,3.6077,184.78,184.7,20.26111218]
[1734975494342,3.6077,184.78,184.71,20.26111218]
[1734975495551,3.6077,184.78,184.68,14.34878602]
[1734975495552,3.6077,184.78,184.7,20.26111218]
[1734975497030,3.6077,184.78,184.71,20.26111218]
[1734975497234,3.6077,184.82,184.72,20.26111218]
[1734975497440,3.6077,184.82,184.74,20.26111218]
[1734975497779,3.6077,184.82,184.75,20.26111218]
[1734975498246,3.6077,184.82,184.74,20.26111218]
[1734975498433,3.6077,184.82,184.72,20.26111218]
[1734975498623,3.6077,184.82,184.71,20.26111218]
[1734975499347,20.0,184.81,184.69,20.26111218]
[1734975499540,21.3527,184.81,184.68,20.26111218]
[1734975499755,3.6077,184.82,184.74,20.26111218]
[1734975500160,3.6077,184.82,184.7,0.12549]
[1734975500443,3.6077,184.82,184.73,12.68095626]
[1734975500730,1.5241,184.84,184.75,12.68095626]
[1734975501329,1.5241,184.84,184.74,12.68095626]
[1734975502034,1.5241,184.84,184.77,12.68095626]
[1734975502346,1.5241,184.84,184.75,12.68095626]
[1734975503064,3.6077,184.87,184.79,12.68095626]
[1734975503228,1.5655,184.89,184.82,12.68095626]
[1734975503556,1.5655,184.89,184.81,12.68095626]
[1734975503751,1.5655,184.89,184.8,36.45784026]
[1734975503958,1.5655,184.89,184.8,23.776884]
[1734975504460,1.5655,184.89,184.8,36.45784026]
[1734975505132,1.5655,184.89,184.81,12.68095626]
[1734975505454,1.5655,184.89,184.8,36.45784026]
[1734975507352,1.5655,184.89,184.81,12.68095626]
[1734975507940,1.5655,184.89,184.82,12.68095626]
[1734975508329,3.6077,184.91,184.82,36.45784026]
[1734975508854,1.6653,184.93,184.85,12.68095626]
[1734975509248,1.6653,184.93,184.82,36.45784026]
[1734975509629,1.6653,184.93,184.79,12.68095626]
[1734975509860,1.3519,184.92,184.79,12.68095626]
[1734975510651,1.3519,184.92,184.78,26.21025626]
[1734975510952,1.3519,184.92,184.79,12.68095626]
[1734975512047,1.3519,184.92,184.78,26.21025626]
[1734975512776,1.3519,184.92,184.78,13.5293]
[1734975513149,1.3519,184.92,184.78,26.21025626]
[1734975513856,1.3519,184.92,184.77,23.776884]
[1734975514244,1.3519,184.92,184.77,36.45784026]
[1734975516354,1.3519,184.92,184.79,12.68095626]
[1734975517756,1.3519,184.92,184.8,12.68095626]
[1734975517946,1.6653,184.93,184.82,12.68095626]
[1734975518362,1.6653,184.93,184.81,12.68095626]
[1734975518764,1.6653,184.93,184.83,12.68095626]
[1734975518966,1.6653,184.93,184.82,12.68095626]
[1734975519346,1.6653,184.93,184.84,12.68095626]
[1734975519850,1.6653,184.93,184.86,12.68095626]
[1734975520063,1.6653,184.93,184.83,20.0]
[1734975520064,1.6653,184.93,184.85,12.68095626]
[1734975520964,1.6653,184.93,184.87,12.68095626]
[1734975521169,1.6064,184.98,184.9,12.68095626]
[1734975521666,1.6064,184.98,184.92,12.68095626]
[1734975521965,0.6834123,185.02,184.97,12.68095626]
[1734975522983,0.6834123,185.02,184.98,12.68095626]
[1734975523146,0.6834123,185.02,184.97,12.68095626]
[1734975524036,0.6834123,185.02,184.98,29.806284]
[1734975524270,0.6834123,185.02,185.0,12.68095626]
[1734975524763,0.6834123,185.02,184.99,12.68095626]
[1734975525147,0.6834123,185.02,184.97,36.45784026]
[1734975525368,0.6834123,185.02,184.99,20.0]
[1734975525567,0.6834123,185.02,184.95,12.68095626]
[1734975525870,0.6834123,185.02,184.96,12.68095626]
[1734975526055,0.6834123,185.02,184.97,20.0]
[1734975526253,0.6834123,185.02,184.96,12.68095626]
[1734975527072,0.6834123,185.02,184.97,12.68095626]
[1734975527442,0.6834123,185.02,184.96,23.776884]
[1734975527643,0.6834123,185.02,184.96,36.45784026]
[1734975528172,0.6834123,185.02,184.97,12.68095626]
[1734975528340,0.6834123,185.02,184.98,12.68095626]
[1734975529164,0.6834123,185.02,184.99,12.68095626]
[1734975529569,0.6834123,185.02,185.01,32.68095626]
[1734975530069,0.6834123,185.02,184.98,12.68095626]
[1734975530256,0.6834123,185.02,185.0,20.0]
[1734975530671,0.6834123,185.02,185.0,32.68095626]
[1734975530861,0.6834123,185.02,185.01,36.58333026]
[1734975531883,1.23e-05,185.02,185.01,36.58333026]
[1734975532178,1.23e-05,185.02,185.01,44.29453026]
[1734975532756,1.23e-05,185.02,185.01,56.97548652]
[1734975533079,1.23e-05,185.02,185.01,44.29453026]
[1734975535677,1.23e-05,185.02,185.01,20.39215626]
[1734975536370,1.23e-05,185.02,185.01,20.51764626]
[1734975536572,1.23e-05,185.02,185.01,18.82745626]
[1734975536875,1.23e-05,185.02,185.01,12.80644626]
[1734975537055,1.23e-05,185.02,185.0,12.68095626]
[1734975537251,1.23e-05,185.02,184.98,12.68095626]
[1734975537761,1.23e-05,185.02,184.97,12.68095626]
[1734975538380,1.23e-05,185.02,184.94,12.68095626]
[1734975538758,1.23e-05,185.02,184.95,12.68095626]
[1734975539487,1.23e-05,185.02,184.96,12.68095626]
[1734975540682,1.23e-05,185.02,184.98,20.0]
[1734975540864,1.23e-05,185.02,184.96,12.68095626]
[1734975541580,1.23e-05,185.02,185.0,12.68095626]
[1734975542294,1.23e-05,185.02,185.01,36.58333026]
[1734975543403,1.23e-05,185.02,185.01,49.26428652]
[1734975543563,1.23e-05,185.02,185.01,62.77698652]
[1734975543897,1.23e-05,185.02,185.01,50.09603026]
[1734975544396,5.2348,185.17,185.05,0.12549]
[1734975544574,5.2348,185.17,185.1,12.68095626]
[1734975544964,5.2348,185.17,185.11,12.68095626]
[1734975545199,5.2348,185.17,185.08,12.68095626]
[1734975545508,5.2348,185.17,185.06,36.45784026]
[1734975546162,5.2348,185.17,185.06,12.68095626]
[1734975546895,5.2348,185.17,185.07,12.68095626]
[1734975547256,5.2348,185.17,185.06,12.68095626]
[1734975548301,5.2348,185.17,185.03,12.68095626]
[1734975548302,20.0,185.13,185.03,12.68095626]
[1734975548594,20.0,185.09,184.98,12.68095626]
[1734975548794,3.6077,185.08,184.97,12.68095626]
[1734975549290,3.6077,185.08,184.98,12.68095626]
[1734975550192,23.6077,185.08,184.98,12.68095626]
[1734975551160,23.6077,185.08,184.97,12.68095626]
[1734975551993,23.6077,185.08,184.98,12.68095626]
[1734975552859,3.6077,185.08,184.98,12.68095626]
[1734975553288,23.6077,185.08,184.98,12.68095626]
[1734975553591,23.6077,185.08,185.01,12.68095626]
[1734975553890,3.6077,185.08,185.01,12.68095626]
[1734975554515,3.6077,185.08,185.0,12.68095626]
[1734975554690,3.6077,185.08,184.99,32.68095626]
[1734975554874,3.6077,185.08,185.0,12.68095626]
[1734975555600,3.6077,185.08,185.01,12.68095626]
[1734975555806,3.6077,185.08,185.02,12.68095626]
[1734975556006,3.6077,185.08,185.03,12.68095626]
[1734975556188,3.6077,185.08,185.01,12.68095626]
[1734975556504,3.6077,185.08,185.01,20.0]
[1734975556881,3.6077,185.08,185.0,12.68095626]
[1734975557082,3.6077,185.08,184.99,36.45784026]
[1734975557312,3.6077,185.08,185.0,12.68095626]
[1734975557505,1.6271,185.11,185.02,12.68095626]
[1734975558017,1.6271,185.11,185.03,12.68095626]
[1734975558179,1.6271,185.11,185.04,12.68095626]
[1734975558612,1.6271,185.11,185.03,12.68095626]
[1734975559424,1.6271,185.11,185.01,13.5123]
[1734975559716,1.6271,185.11,185.02,12.68095626]
[1734975559920,1.6271,185.11,185.03,12.68095626]
[1734975560281,1.6271,185.11,185.02,12.68095626]
[1734975560611,1.6271,185.11,185.01,12.68095626]
[1734975561073,1.6271,185.11,185.02,12.68095626]
[1734975561809,1.6271,185.11,185.01,12.68095626]
[1734975562015,1.6271,185.11,185.02,12.68095626]
[1734975562934,1.6271,185.11,185.03,12.68095626]
[1734975564530,1.6271,185.11,185.02,12.68095626]
[1734975564696,1.6271,185.11,185.01,36.45784026]
[1734975565196,1.6271,185.11,185.02,12.68095626]
[1734975565397,1.6271,185.11,185.01,12.68095626]
[1734975566122,1.6271,185.11,185.02,12.68095626]
[1734975566819,1.6271,185.11,185.01,12.68095626]
[1734975567215,1.6271,185.11,184.97,14.32581227]
[1734975567216,20.12549,185.1,184.97,14.32581227]
[1734975567525,20.0,185.06,184.95,12.68095626]
[1734975567827,20.0,185.06,184.94,13.5177]
[1734975568121,20.0,185.06,184.94,26.19865626]
[1734975568496,20.0,185.06,184.95,12.68095626]
[1734975568698,20.0,185.06,184.96,12.68095626]
[1734975569007,20.0,185.06,184.95,12.68095626]
[1734975569595,5.2389,185.05,184.92,12.68095626]
[1734975569801,5.2389,185.05,184.94,12.68095626]
[1734975570002,5.2389,185.05,184.96,12.68095626]
[1734975570911,5.2389,185.05,184.98,12.68095626]
[1734975572021,5.2389,185.05,184.96,32.68095626]
[1734975572723,5.2389,185.05,184.98,12.68095626]
[1734975572929,1.6264,185.09,185.01,12.68095626]
[1734975573112,1.6264,185.09,185.03,12.68095626]
[1734975574827,5.1323,185.15,185.05,12.68095626]
[1734975575023,5.1323,185.15,185.06,12.68095626]
[1734975575320,0.12549,185.14,185.04,12.68095626]
[1734975575530,0.12549,185.14,185.02,12.68095626]
[1734975575739,0.12549,185.14,184.99,23.902374]
[1734975575902,0.12549,185.14,184.99,36.58333026]
[1734975576098,20.0,185.12,185.0,12.68095626]
[1734975576405,20.0,185.08,184.99,12.68095626]
[1734975576817,1.5463,185.07,184.97,12.68095626]
[1734975577012,1.5463,185.07,184.96,12.68095626]
[1734975577216,1.5463,185.07,184.95,12.68095626]
[1734975577420,3.6077,185.06,184.95,12.68095626]
[1734975578032,20.0,185.04,184.94,12.68095626]
[1734975578237,20.0,185.04,184.95,12.68095626]
[1734975578740,20.0,185.04,184.94,12.68095626]
[1734975579034,20.0,185.04,184.95,12.68095626]
[1734975580963,20.0,185.04,184.96,12.68095626]
[1734975581318,20.0,185.04,184.97,12.68095626]
[1734975581936,20.0,185.04,184.96,12.68095626]
[1734975582237,20.0,185.04,184.95,12.68095626]
[1734975582435,20.0,185.04,184.96,12.68095626]
[1734975584133,20.0,185.04,184.95,12.68095626]
[1734975584917,3.6077,185.06,184.97,12.68095626]
[1734975585128,1.5463,185.07,185.0,12.68095626]
[1734975585637,3.6077,185.1,185.02,12.68095626]
[1734975585840,1.5719,185.12,185.05,12.68095626]
[1734975586037,11.71339962,185.15,185.07,12.68095626]
[1734975586038,3.6077,185.15,185.07,12.68095626]
[1734975586337,3.6077,185.15,185.06,12.68095626]
[1734975586933,3.6077,185.15,185.07,12.68095626]
[1734975588238,3.6077,185.15,185.08,12.68095626]
[1734975588436,1.5832,185.17,185.09,12.80644626]
[1734975588641,1.5832,185.17,185.11,12.68095626]
[1734975589015,3.6077,185.19,185.11,12.68095626]
[1734975589216,3.6077,185.19,185.1,36.58333026]
[1734975589430,0.6834123,185.2,185.12,12.68095626]
[1734975589631,0.6834123,185.2,185.11,12.68095626]
[1734975590244,0.6834123,185.2,185.12,12.68095626]
[1734975591954,0.6834123,185.2,185.11,36.45784026]
[1734975592322,0.6834123,185.2,185.11,23.776884]
[1734975592533,0.6834123,185.2,185.11,36.45784026]
[1734975592844,0.6834123,185.2,185.11,23.776884]
[1734975593149,0.6834123,185.2,185.11,12.68095626]
[1734975593337,0.6834123,185.2,185.1,23.902374]
[1734975593338,0.6834123,185.2,185.13,12.68095626]
[1734975593538,0.6834123,185.2,185.11,12.68095626]
[1734975593743,0.6834123,185.2,185.1,12.68095626]
[1734975593940,0.6834123,185.2,185.08,36.45784026]
[1734975594144,0.6834123,185.2,185.1,20.0]
[1734975594459,0.6834123,185.2,185.1,32.68095626]
[1734975594753,0.6834123,185.2,185.1,20.0]
[1734975595322,0.6834123,185.2,185.08,12.68095626]
[1734975595523,0.6834123,185.2,185.07,12.80644626]
[1734975595738,0.12549,185.19,185.06,26.19005626]
[1734975595935,0.12549,185.19,185.06,13.5091]
[1734975596527,0.12549,185.19,185.06,26.19005626]
[1734975597972,23.902374,185.19,185.04,12.68095626]
[1734975598137,20.0,185.16,185.04,36.45784026]
[1734975598338,20.0,185.16,185.05,12.68095626]
[1734975598566,20.0,185.16,185.04,12.68095626]
[1734975599138,20.0,185.16,185.05,12.68095626]
[1734975599343,20.0,185.16,185.04,12.68095626]
[1734975600076,20.0,185.16,185.06,12.68095626]
[1734975600576,20.0,185.16,185.05,12.68095626]
[1734975600885,20.0,185.16,185.04,36.45784026]
[1734975601080,20.0,185.16,185.03,26.19205626]
[1734975601240,0.12549,185.13,185.01,12.68095626]
[1734975601435,0.12549,185.13,185.0,26.19435626]
[1734975601666,23.902374,185.13,185.0,12.68095626]
[1734975601856,20.0,185.1,184.99,12.68095626]
[1734975602179,3.6077,185.09,184.95,12.68095626]
[1734975602678,0.12549,185.08,184.95,12.68095626]
[1734975602882,3.6077,185.09,184.99,12.68095626]
[1734975603126,3.6077,185.09,185.0,12.68095626]
[1734975603293,20.0,185.11,185.03,12.68095626]
[1734975603617,20.0,185.11,185.01,12.68095626]
[1734975604323,20.0,185.11,185.02,12.68095626]
[1734975604519,5.2361,185.14,185.03,36.45784026]
[1734975604821,5.2361,185.14,185.03,12.68095626]
[1734975606020,5.2361,185.14,185.07,12.68095626]
[1734975606521,1.6284,185.14,185.07,12.68095626]
[1734975607215,1.6284,185.14,185.06,32.68095626]
[1734975607523,5.1163,185.19,185.09,12.68095626]
[1734975607677,5.1163,185.19,185.11,12.68095626]
[1734975608513,5.1163,185.19,185.1,36.45784026]
[1734975609110,5.1163,185.19,185.06,12.68095626]
[1734975609111,20.0,185.16,185.06,12.68095626]
[1734975609317,20.0,185.16,185.02,12.68095626]
[1734975610226,20.0,185.16,185.04,12.68095626]
[1734975610526,20.0,185.16,185.07,12.68095626]
[1734975610736,20.0,185.16,185.06,12.68095626]
[1734975611233,20.0,185.16,185.03,12.68095626]
[1734975611986,20.0,185.16,185.02,13.512]
[1734975612220,20.0,185.16,185.03,12.68095626]
[1734975612599,23.902374,185.15,185.02,12.68095626]
[1734975612818,20.0,185.12,185.01,18.82095626]
[1734975613046,1.6299,185.11,185.01,23.776884]
[1734975613348,3.73319,185.1,184.97,12.68095626]
[1734975613547,20.0,185.06,184.92,12.68095626]
[1734975613755,1.69599,185.05,184.9,12.68095626]
[1734975613908,1.69599,185.05,184.89,8.43747635]
[1734975613909,0.12549,185.01,184.89,8.43747635]
[1734975614110,20.0,184.98,184.89,8.43747635]
[1734975614310,20.0,184.98,184.86,46.54237039]
[1734975614311,20.0,184.98,184.86,12.68095626]
[1734975614848,20.0,184.94,184.84,21.11843261]
[1734975615329,1.5524,184.95,184.83,19.16225626]
[1734975615522,1.5524,184.95,184.85,12.68095626]
[1734975615727,1.5524,184.95,184.86,12.68095626]
[1734975616108,1.5524,184.95,184.89,12.68095626]
[1734975616422,1.626,185.0,184.89,12.68095626]
[1734975617143,1.626,185.0,184.88,12.68095626]
[1734975617905,1.626,185.0,184.87,32.68095626]
[1734975618459,1.626,185.0,184.88,12.68095626]
[1734975619864,1.626,185.0,184.89,23.776884]
[1734975620043,1.626,185.0,184.88,36.45784026]
[1734975620242,1.626,185.0,184.89,12.68095626]
[1734975620443,1.626,185.0,184.9,12.68095626]
[1734975621044,1.626,185.0,184.91,12.68095626]
[1734975621243,1.626,185.0,184.93,12.68095626]
[1734975621568,5.2503,185.04,184.96,12.68095626]
[1734975621815,1.6426,185.04,184.97,12.68095626]
[1734975622396,3.6077,185.08,184.99,12.68095626]
[1734975622397,5.2503,185.08,184.99,12.68095626]
[1734975622708,5.2503,185.08,185.0,12.68095626]
[1734975622890,5.2503,185.08,184.98,23.776884]
[1734975622891,5.2503,185.08,184.98,36.45784026]
[1734975623075,5.2503,185.08,184.99,12.68095626]
[1734975623289,5.2503,185.08,184.98,23.776884]
[1734975623290,5.2503,185.08,185.0,12.68095626]
[1734975623607,5.2503,185.13,185.05,12.68095626]
[1734975624902,5.2503,185.13,185.03,36.58333026]
[1734975625107,5.2503,185.13,185.03,12.68095626]
[1734975625715,5.2503,185.13,185.01,12.68095626]
[1734975627382,5.2503,185.13,185.0,12.68095626]
[1734975627570,20.0,185.1,184.98,12.68095626]
[1734975627775,20.0,185.1,184.96,0.12549]
[1734975628094,20.0,185.1,184.97,12.68095626]
[1734975628305,23.902374,185.09,184.96,12.68095626]
[1734975628683,20.0,185.06,184.96,12.68095626]
[1734975629591,20.0,185.1,184.98,12.68095626]
[1734975629789,0.12549,185.09,184.96,36.45784026]
[1734975629998,0.12549,185.09,184.97,12.68095626]
[1734975630271,0.12549,185.09,184.98,20.23558146]
[1734975632086,20.0,185.1,185.0,20.23558146]
[1734975632289,20.0,185.1,185.01,20.23558146]
[1734975632494,20.0,185.1,185.0,20.23558146]
[1734975632810,5.2503,185.13,185.02,20.23558146]
[1734975634811,5.2503,185.13,185.03,20.23558146]
[1734975635015,5.2503,185.13,185.02,20.23558146]
[1734975635311,5.2503,185.13,185.01,20.23558146]
[1734975635530,5.2503,185.13,185.02,20.23558146]
[1734975636020,20.0,185.1,185.01,20.23558146]
[1734975636181,20.0,185.1,184.98,20.23558146]
[1734975637135,20.0,185.1,185.0,20.23558146]
[1734975637339,5.2503,185.13,185.04,20.23558146]
[1734975637540,5.2503,185.13,185.03,20.23558146]
[1734975637694,5.2503,185.13,185.02,44.01246546]
[1734975639128,5.2503,185.13,185.02,23.776884]
[1734975639310,20.0,185.1,185.0,13.5131]
[1734975640003,20.0,185.1,185.0,33.74868146]
[1734975640330,5.2503,185.13,185.01,20.23558146]
[1734975640566,5.2503,185.13,185.04,20.23558146]
[1734975640830,5.2503,185.13,185.03,20.23558146]
[1734975641021,5.2503,185.13,185.04,20.23558146]
[1734975642327,5.2503,185.13,185.04,23.776884]
[1734975642528,5.2503,185.13,185.04,44.01246546]
[1734975642729,1.6426,185.13,185.06,20.23558146]
[1734975642940,1.6426,185.13,185.07,20.23558146]
[1734975643556,3.6077,185.17,185.1,20.23558146]
[1734975643734,1.5713,185.18,185.11,20.23558146]
[1734975644659,1.5713,185.18,185.12,20.23558146]
[1734975644862,0.6834123,185.2,185.15,20.23558146]
[1734975645313,0.6834123,185.2,185.14,20.23558146]
[1734975645518,0.6834123,185.2,185.11,20.23558146]
[1734975645920,0.6834123,185.2,185.12,20.23558146]
[1734975646120,0.6834123,185.2,185.13,20.23558146]
[1734975646320,0.6834123,185.2,185.08,37.283884]
[1734975646629,0.6834123,185.2,185.08,57.51946546]
[1734975647061,0.6834123,185.2,185.09,20.23558146]
[1734975647240,0.6834123,185.2,185.1,20.23558146]
[1734975647426,0.6834123,185.2,185.11,23.776884]
[1734975647624,0.6834123,185.2,185.13,20.23558146]
[1734975647829,0.6834123,185.2,185.14,20.23558146]
[1734975648564,0.6834123,185.2,185.15,20.23558146]
[1734975649041,0.6834123,185.2,185.14,20.23558146]
[1734975649673,0.6834123,185.2,185.12,33.74028146]
[1734975649960,0.6834123,185.2,185.12,13.5047]
[1734975650160,0.6834123,185.2,185.14,20.23558146]
[1734975650334,0.6834123,185.2,185.12,33.74028146]
[1734975650525,0.6834123,185.2,185.15,20.23558146]
[1734975650864,0.6834123,185.2,185.14,20.23558146]
[1734975651621,0.6834123,185.2,185.13,44.13795546]
[1734975652248,0.6834123,185.2,185.11,12.62872255]
[1734975652625,0.6834123,185.2,185.12,12.62872255]
[1734975652854,0.6834123,185.2,185.13,12.62872255]
[1734975653076,0.6834123,185.2,185.14,36.40560655]
[1734975653364,0.6834123,185.2,185.16,23.776884]
[1734975653869,0.6834123,185.2,185.16,36.40560655]
[1734975654025,0.6834123,185.2,185.18,12.75421255]
[1734975654374,0.6834123,185.2,185.16,23.776884]
[1734975654375,0.6834123,185.2,185.19,36.40560655]
[1734975654945,0.6834123,185.2,185.19,36.53109655]
[1734975655779,0.6834123,185.2,185.13,19.6762]
[1734975656236,0.6834123,185.2,185.1,1.6578]
[1734975656434,0.6834123,185.2,185.1,14.28652255]
[1734975656734,0.6834123,185.2,185.11,0.12549]
[1734975656946,0.6834123,185.2,185.1,14.28652255]
[1734975657263,0.6834123,185.2,185.11,12.75421255]
[1734975657750,0.6834123,185.2,185.12,32.62872255]
[1734975658243,0.6834123,185.2,185.12,40.20515921]
[1734975659057,0.6834123,185.2,185.12,20.0]
[1734975660141,2.2839123,185.2,185.1,20.20515921]
[1734975660479,2.2839123,185.2,185.1,23.776884]
[1734975660678,0.12549,185.18,185.07,20.20515921]
[1734975660842,23.902374,185.18,185.04,20.20515921]
[1734975661042,20.0,185.15,185.02,20.20515921]
[1734975661350,20.0,185.11,184.98,20.20515921]
[1734975662070,20.0,185.11,185.0,20.20515921]
[1734975662281,20.0,185.11,185.01,20.20515921]
[1734975662646,1.47609,185.1,184.97,20.20515921]
[1734975662945,20.0,185.06,184.94,20.20515921]
[1734975663172,20.0,185.06,184.94,0.12549]
[1734975663379,20.0,185.06,184.94,20.20515921]
[1734975663571,1.6167,185.07,184.9,7.3542572]
[1734975663572,23.6077,185.04,184.91,20.20515921]
[1734975663961,0.12549,185.03,184.88,20.20515921]
[1734975664387,20.0,185.0,184.88,20.20515921]
[1734975664677,20.0,185.0,184.91,20.20515921]
[1734975665060,20.0,185.01,184.9,20.20515921]
[1734975665866,23.902374,184.99,184.86,20.20515921]
[1734975666169,20.0,184.96,184.83,20.20515921]
[1734975666350,20.0,184.96,184.82,20.20515921]
[1734975666554,20.0,184.96,184.85,20.20515921]
[1734975666754,20.0,184.96,184.84,20.20515921]
[1734975667460,20.0,184.92,184.76,20.145]
[1734975667784,21.5503,184.91,184.78,20.20515921]
[1734975668154,23.902374,184.9,184.72,14.34492583]
[1734975668372,23.902374,184.9,184.75,20.20515921]
[1734975668568,20.0,184.87,184.75,20.20515921]
[1734975669180,21.5503,184.91,184.78,20.20515921]
[1734975669375,21.5503,184.91,184.8,20.20515921]
[1734975669560,21.5503,184.91,184.81,23.776884]
[1734975669766,21.5503,184.91,184.82,20.20515921]
[1734975670070,1.5503,184.91,184.82,0.12549]
[1734975670273,1.5503,184.91,184.83,20.20515921]
[1734975670487,1.5503,184.91,184.82,20.20515921]
[1734975670890,1.5503,184.91,184.83,20.20515921]
[1734975671097,1.5503,184.91,184.82,20.20515921]
[1734975671787,1.5503,184.91,184.83,20.20515921]
[1734975672383,1.5503,184.91,184.84,20.0]
[1734975672694,1.5503,184.91,184.82,20.20515921]
[1734975673779,1.5503,184.91,184.83,20.20515921]
[1734975673987,1.5503,184.91,184.85,20.20515921]
[1734975674191,1.5503,184.91,184.84,20.20515921]
[1734975674501,1.5503,184.91,184.83,20.20515921]
[1734975674706,1.5503,184.91,184.81,23.776884]
[1734975675075,1.5503,184.91,184.73,0.81132137]
[1734975675411,20.0,184.87,184.74,20.20515921]
[1734975675573,23.902374,184.86,184.73,20.20515921]
[1734975675768,20.0,184.83,184.72,20.20515921]
[1734975675992,23.902374,184.84,184.71,20.20515921]
[1734975676196,23.902374,184.84,184.7,20.20515921]
[1734975676386,23.902374,184.84,184.71,20.20515921]
[1734975676701,20.0,184.81,184.71,20.20515921]